bitfinex/quotes_SOLUSD_20241209
["timestamp","ask_amount","ask_price","bid_price","bid_amount"]
[1733780336232,18.9717,220.5,220.49,22.03367173]
[1733780337498,18.9717,220.5,220.49,0.25098]
[1733780337810,18.9717,220.5,220.49,22.03367173]
[1733780338524,18.7209,220.5,220.49,22.03367173]
[1733780340326,18.7209,220.5,220.4,13.17531206]
[1733780340623,18.7209,220.5,220.49,21.78269173]
[1733780340798,18.7209,220.5,220.49,21.90818173]
[1733780341342,12.6896,220.5,220.49,30.98778173]
[1733780342327,12.6896,220.5,220.42,13.62]
[1733780342328,12.6896,220.5,220.43,9.0796]
[1733780342495,12.6896,220.5,220.48,21.78269173]
[1733780342701,12.6896,220.5,220.46,21.78269173]
[1733780342902,12.6896,220.5,220.47,21.78269173]
[1733780343557,12.6896,220.5,220.45,21.78269173]
[1733780343846,12.6896,220.5,220.46,0.12549]
[1733780344034,12.6896,220.5,220.49,21.78269173]
[1733780344250,12.6896,220.5,220.49,21.90818173]
[1733780344918,12.6896,220.5,220.45,21.78269173]
[1733780345112,12.6896,220.5,220.44,21.78269173]
[1733780345314,23.776884,220.49,220.44,21.78269173]
[1733780345520,23.776884,220.49,220.42,21.78269173]
[1733780345746,23.776884,220.49,220.43,21.78269173]
[1733780346134,23.776884,220.49,220.41,21.78269173]
[1733780346315,23.776884,220.49,220.42,0.12549]
[1733780346513,23.776884,220.49,220.41,21.78269173]
[1733780346739,12.6896,220.5,220.46,21.90818173]
[1733780346943,12.6896,220.5,220.46,21.78269173]
[1733780347242,12.6896,220.5,220.46,21.90818173]
[1733780347446,12.6896,220.5,220.46,21.78269173]
[1733780347822,12.6896,220.5,220.46,0.25098]
[1733780349317,12.6896,220.5,220.46,22.03367173]
[1733780349756,12.6896,220.5,220.46,0.12549]
[1733780350045,12.6896,220.5,220.45,0.12549]
[1733780350250,12.6896,220.5,220.48,0.12549]
[1733780351649,12.6896,220.5,220.49,22.03367173]
[1733780351824,12.6896,220.5,220.49,0.25098]
[1733780356321,12.6896,220.5,220.46,21.78269173]
[1733780356762,12.6896,220.5,220.46,0.12549]
[1733780356948,23.776884,220.49,220.43,21.78269173]
[1733780357247,23.776884,220.49,220.42,13.58683968]
[1733780358267,11.3388,220.48,220.39,13.58683968]
[1733780358474,23.776884,220.47,220.3,8.5106]
[1733780358764,23.776884,220.47,220.36,13.58683968]
[1733780358967,23.776884,220.47,220.37,13.58683968]
[1733780359172,23.776884,220.48,220.43,21.74070299]
[1733780359369,23.776884,220.48,220.41,21.74070299]
[1733780359550,23.776884,220.48,220.4,21.74070299]
[1733780359951,23.776884,220.48,220.41,0.25098]
[1733780360372,23.776884,220.46,220.37,21.74070299]
[1733780360569,23.776884,220.46,220.36,21.74070299]
[1733780360880,23.776884,220.46,220.3,9.19115654]
[1733780360881,23.776884,220.46,220.4,21.74070299]
[1733780361238,8.5247,220.49,220.42,21.74070299]
[1733780361443,11.3388,220.48,220.38,0.12549]
[1733780361669,11.3388,220.48,220.4,21.74070299]
[1733780361978,8.5247,220.49,220.42,0.25098]
[1733780362461,8.5247,220.49,220.34,0.68042302]
[1733780362668,19.8633,220.49,220.4,0.12549]
[1733780362858,19.8633,220.49,220.37,21.74070299]
[1733780363042,20.0,220.46,220.37,21.74070299]
[1733780363244,23.776884,220.45,220.38,21.74070299]
[1733780363977,23.776884,220.43,220.34,21.74070299]
[1733780364151,23.776884,220.43,220.36,21.74070299]
[1733780364470,23.776884,220.43,220.37,21.74070299]
[1733780364977,23.776884,220.43,220.37,0.12549]
[1733780365582,23.776884,220.43,220.36,0.12549]
[1733780365765,23.776884,220.43,220.36,21.86619299]
[1733780366572,23.776884,220.43,220.36,0.12549]
[1733780366878,23.776884,220.43,220.36,21.86619299]
[1733780367063,8.3138,220.44,220.4,21.99168299]
[1733780367264,8.3138,220.44,220.3,20.68047262]
[1733780367265,11.3414,220.43,220.3,20.68047262]
[1733780367573,8.3138,220.44,220.35,21.74070299]
[1733780367756,8.3138,220.44,220.3,20.0]
[1733780367757,8.3138,220.44,220.38,0.12549]
[1733780367967,8.3138,220.44,220.37,21.74070299]
[1733780368259,23.776884,220.43,220.38,0.12549]
[1733780368867,23.776884,220.43,220.38,0.25098]
[1733780369590,23.776884,220.43,220.39,0.25098]
[1733780370044,23.776884,220.43,220.39,0.12549]
[1733780370247,23.776884,220.43,220.37,0.25098]
[1733780370849,23.776884,220.43,220.37,0.12549]
[1733780371076,23.776884,220.43,220.35,21.86619299]
[1733780371248,23.776884,220.43,220.36,0.12549]
[1733780371444,23.776884,220.41,220.29,21.74070299]
[1733780371677,23.776884,220.41,220.3,21.74070299]
[1733780371866,23.776884,220.41,220.31,21.74070299]
[1733780372066,23.776884,220.41,220.23,0.68075305]
[1733780372067,23.776884,220.41,220.33,21.74070299]
[1733780372271,23.776884,220.43,220.34,0.12549]
[1733780372674,23.776884,220.43,220.32,21.74070299]
[1733780372862,23.776884,220.43,220.31,21.74070299]
[1733780373185,35.118284,220.43,220.32,0.25098]
[1733780373358,169.418284,220.43,220.29,21.74070299]
[1733780373757,23.776884,220.41,220.29,21.74070299]
[1733780373968,23.776884,220.41,220.31,0.12549]
[1733780374657,23.776884,220.41,220.3,0.25098]
[1733780374855,20.0,220.36,220.2,18.165905]
[1733780375052,23.776884,220.36,220.22,21.74070299]
[1733780375272,23.776884,220.36,220.25,21.74070299]
[1733780375469,23.776884,220.38,220.26,0.12549]
[1733780376088,23.776884,220.38,220.24,21.86619299]
[1733780376258,23.776884,220.38,220.24,0.12549]
[1733780376596,23.776884,220.38,220.16,21.74070299]
[1733780376597,8.586,220.34,220.16,21.74070299]
[1733780376878,23.776884,220.31,220.19,21.74070299]
[1733780377099,23.776884,220.31,220.2,21.86619299]
[1733780377267,23.776884,220.31,220.14,0.68108233]
[1733780377268,23.776884,220.33,220.24,21.86619299]
[1733780377454,8.586,220.34,220.28,0.12549]
[1733780377955,8.586,220.34,220.26,0.25098]
[1733780378180,13.7826,220.39,220.3,0.12549]
[1733780378490,13.7826,220.39,220.31,21.99168299]
[1733780378657,13.7826,220.39,220.31,0.25098]
[1733780378967,13.3326,220.39,220.3,0.25098]
[1733780379169,13.3326,220.39,220.33,0.12549]
[1733780379374,8.3303,220.45,220.35,0.12549]
[1733780379580,8.3303,220.45,220.37,0.12549]
[1733780379754,19.7335,220.49,220.37,0.25098]
[1733780379957,8.3952,220.49,220.37,21.99168299]
[1733780380176,8.3952,220.49,220.4,0.12549]
[1733780380576,8.3952,220.49,220.38,0.25098]
[1733780380890,8.3952,220.49,220.36,21.86619299]
[1733780381195,8.3952,220.49,220.37,0.12549]
[1733780381565,8.3952,220.49,220.41,0.12549]
[1733780381889,19.7339,220.49,220.41,0.12549]
[1733780382091,8.3952,220.49,220.42,0.12549]
[1733780382583,8.3952,220.49,220.41,0.12549]
[1733780382979,8.3952,220.49,220.41,0.25098]
[1733780383175,8.3952,220.49,220.43,0.12549]
[1733780383359,8.3952,220.49,220.43,0.25098]
[1733780383971,12.6896,220.5,220.46,0.12549]
[1733780384161,12.6896,220.5,220.45,0.12549]
[1733780384367,12.6896,220.5,220.43,0.12549]
[1733780384569,12.6896,220.5,220.44,0.12549]
[1733780384981,12.6896,220.5,220.45,0.12549]
[1733780385583,12.6896,220.5,220.47,21.74070299]
[1733780385783,12.6896,220.5,220.45,21.86619299]
[1733780385992,12.6896,220.5,220.45,0.12549]
[1733780386283,12.6896,220.5,220.43,0.12549]
[1733780386580,12.6896,220.5,220.45,21.74070299]
[1733780387093,12.6896,220.5,220.42,21.74070299]
[1733780387259,12.6896,220.5,220.33,29.75610299]
[1733780387260,12.6896,220.5,220.38,21.74070299]
[1733780387465,135.3,220.49,220.38,21.74070299]
[1733780387665,12.6896,220.5,220.4,0.12549]
[1733780387860,12.6896,220.5,220.39,21.74070299]
[1733780387861,23.776884,220.49,220.39,21.74070299]
[1733780388465,23.776884,220.49,220.42,21.74070299]
[1733780388693,23.776884,220.49,220.43,0.12549]
[1733780389787,23.776884,220.49,220.43,0.25098]
[1733780390779,23.776884,220.49,220.41,0.25098]
[1733780391385,23.776884,220.49,220.4,0.12549]
[1733780391586,12.6896,220.5,220.46,0.12549]
[1733780392296,12.6896,220.5,220.44,0.12549]
[1733780392892,23.776884,220.49,220.44,0.25098]
[1733780393064,23.776884,220.49,220.42,0.25098]
[1733780395097,23.776884,220.49,220.31,322.0]
[1733780395098,155.3,220.4,220.15,13.24]
[1733780395266,23.776884,220.34,220.23,13.59428356]
[1733780395478,23.776884,220.32,220.21,13.59428356]
[1733780396200,23.776884,220.32,220.22,0.12549]
[1733780396492,23.776884,220.32,220.21,13.59428356]
[1733780396902,135.3,220.31,220.24,0.12549]
[1733780397110,23.776884,220.3,220.23,13.59428356]
[1733780397401,23.776884,220.28,220.23,21.78240437]
[1733780398410,23.776884,220.28,220.24,0.12549]
[1733780398894,23.776884,220.28,220.24,0.25098]
[1733780399103,23.776884,220.28,220.26,0.25098]
[1733780400404,23.776884,220.32,220.28,0.25098]
[1733780400603,5.3014,220.33,220.3,0.12549]
[1733780400774,5.3014,220.33,220.32,0.25098]
[1733780401472,5.3014,220.33,220.29,21.78240437]
[1733780401687,5.3014,220.33,220.3,0.12549]
[1733780401898,23.776884,220.29,220.26,0.12549]
[1733780402074,23.776884,220.29,220.25,21.78240437]
[1733780402274,5.3014,220.33,220.28,21.90789437]
[1733780402275,23.776884,220.32,220.28,21.90789437]
[1733780402487,23.776884,220.32,220.28,0.12549]
[1733780402681,23.776884,220.32,220.28,21.90789437]
[1733780402997,5.3014,220.33,220.28,21.90789437]
[1733780403181,5.3014,220.33,220.29,0.12549]
[1733780403698,5.3014,220.33,220.3,0.12549]
[1733780404075,5.199,220.39,220.32,21.78240437]
[1733780404405,5.199,220.39,220.33,0.25098]
[1733780405504,5.199,220.39,220.33,0.12549]
[1733780405505,23.776884,220.38,220.33,0.12549]
[1733780405675,23.776884,220.38,220.32,0.25098]
[1733780405882,23.776884,220.38,220.32,22.03338437]
[1733780407089,135.3,220.35,220.27,21.78240437]
[1733780407303,23.776884,220.36,220.23,21.78240437]
[1733780407304,23.776884,220.3,220.23,21.78240437]
[1733780407511,159.076884,220.3,220.23,21.78240437]
[1733780408073,23.776884,220.28,220.23,0.12549]
[1733780408390,23.776884,220.28,220.22,21.78240437]
[1733780408708,135.3,220.28,220.24,21.90789437]
[1733780408876,23.776884,220.27,220.25,21.78240437]
[1733780409077,23.776884,220.27,220.25,0.12549]
[1733780409477,23.776884,220.27,220.24,0.12549]
[1733780410273,13.2781,220.26,220.24,0.12549]
[1733780410479,159.076884,220.21,220.13,35.94616337]
[1733780410921,23.776884,220.17,220.13,14.163759]
[1733780411088,135.3,220.2,220.14,21.78240437]
[1733780411295,135.3,220.2,220.16,21.78240437]
[1733780411614,5.0404,220.26,220.19,21.78240437]
[1733780411911,7.9898,220.32,220.25,21.78240437]
[1733780412110,7.9898,220.32,220.26,21.78240437]
[1733780412323,8.3113,220.38,220.31,21.90789437]
[1733780412616,8.3113,220.38,220.27,21.78240437]
[1733780412778,8.3113,220.38,220.28,0.12549]
[1733780412974,18.3113,220.38,220.28,0.12549]
[1733780413403,18.3113,220.38,220.28,0.25098]
[1733780413706,8.3113,220.38,220.28,0.25098]
[1733780414088,20.0,220.35,220.28,0.25098]
[1733780414406,8.3113,220.38,220.3,0.25098]
[1733780415401,8.3113,220.38,220.22,21.78240437]
[1733780415402,23.776884,220.33,220.22,21.78240437]
[1733780415613,20.0,220.3,220.22,21.78240437]
[1733780415778,4.7482,220.3,220.1,7.07926247]
[1733780415978,20.0,220.23,220.1,21.78240437]
[1733780416198,23.776884,220.21,220.13,21.78240437]
[1733780416904,13.1758,220.26,220.18,0.12549]
[1733780417412,23.776884,220.25,220.15,21.78240437]
[1733780417910,135.3,220.24,220.15,21.78240437]
[1733780418115,4.7482,220.26,220.19,21.78240437]
[1733780418313,4.7482,220.26,220.17,21.78240437]
[1733780418521,4.7482,220.26,220.11,29.58220437]
[1733780418522,23.776884,220.23,220.15,21.78240437]
[1733780418690,20.0,220.2,220.13,21.78240437]
[1733780419095,20.0,220.19,220.11,21.78240437]
[1733780419292,20.0,220.19,220.12,0.12549]
[1733780419496,23.776884,220.21,220.11,21.78240437]
[1733780419820,23.776884,220.21,220.12,0.12549]
[1733780420002,20.0,220.21,220.16,0.12549]
[1733780420186,23.776884,220.2,220.16,0.12549]
[1733780420390,23.776884,220.2,220.11,21.78240437]
[1733780420718,23.776884,220.2,220.12,0.25098]
[1733780421091,23.776884,220.2,220.12,0.12549]
[1733780421325,20.0,220.21,220.12,0.12549]
[1733780421616,10.0,220.28,220.16,0.12549]
[1733780421924,135.3,220.29,220.16,0.12549]
[1733780422217,135.3,220.29,220.15,0.25098]
[1733780422428,10.0,220.28,220.13,0.12549]
[1733780422590,20.0,220.22,220.13,0.12549]
[1733780422788,23.776884,220.21,220.13,0.12549]
[1733780423419,23.776884,220.21,220.14,0.12549]
[1733780423788,20.0,220.25,220.14,0.12549]
[1733780423984,20.0,220.21,220.14,0.12549]
[1733780424221,20.0,220.19,220.12,0.12549]
[1733780424816,135.3,220.23,220.14,0.25098]
[1733780425021,135.3,220.23,220.16,0.12549]
[1733780425331,135.3,220.23,220.16,0.25098]
[1733780426995,23.776884,220.22,220.16,0.25098]
[1733780427414,23.776884,220.24,220.16,0.25098]
[1733780427613,23.776884,220.24,220.16,0.12549]
[1733780427821,23.776884,220.16,220.05,13.62473078]
[1733780428422,23.776884,220.12,220.03,13.62473078]
[1733780428617,20.0,220.09,220.03,13.62473078]
[1733780428824,179.076884,220.08,219.98,20.70309298]
[1733780429019,20.0,220.04,219.98,7.0783622]
[1733780429189,23.776884,220.03,219.98,7.0783622]
[1733780429394,23.776884,220.06,220.0,21.83579805]
[1733780429705,23.776884,220.06,219.98,7.0783622]
[1733780429706,23.776884,220.11,220.04,21.83579805]
[1733780429899,135.3,220.17,220.05,0.12549]
[1733780430099,20.0,220.13,220.05,0.12549]
[1733780430313,135.3,220.16,220.05,0.12549]
[1733780430513,135.3,220.16,220.07,0.12549]
[1733780430715,135.3,220.16,220.07,0.25098]
[1733780430920,20.0,220.15,220.07,0.25098]
[1733780431121,4.7168,220.28,220.16,20.0]
[1733780431340,135.3,220.24,220.02,10.0]
[1733780431498,10.0,220.2,220.03,21.96128805]
[1733780431993,135.3,220.16,220.03,21.96128805]
[1733780432318,135.3,220.14,220.03,21.83579805]
[1733780432506,20.0,220.11,220.03,21.83579805]
[1733780432701,135.3,220.04,219.98,7.0783622]
[1733780432906,23.776884,220.0,219.98,7.0783622]
[1733780433118,23.776884,220.02,219.98,7.0783622]
[1733780433513,20.0,220.1,219.99,0.12549]
[1733780433514,135.3,220.08,219.99,0.12549]
[1733780433714,23.776884,220.06,219.98,7.0783622]
[1733780434113,23.776884,220.06,219.99,0.12549]
[1733780435221,23.776884,220.02,219.98,7.0783622]
[1733780435426,20.0,220.06,219.98,7.0783622]
[1733780435629,20.0,220.06,219.99,21.96128805]
[1733780436024,23.776884,220.08,219.99,21.96128805]
[1733780436322,12.7623,220.13,220.04,21.83579805]
[1733780436530,12.7623,220.13,219.98,7.0783622]
[1733780436531,135.3,220.12,220.02,21.83579805]
[1733780436869,135.3,220.11,220.03,0.12549]
[1733780437015,135.3,220.11,220.03,0.25098]
[1733780437212,135.3,220.11,220.03,0.12549]
[1733780437613,135.3,220.1,220.01,0.25098]
[1733780438329,20.0,220.07,220.01,0.25098]
[1733780438544,135.3,220.09,220.01,0.25098]
[1733780439043,23.776884,220.08,219.99,0.12549]
[1733780439930,23.776884,220.08,219.99,0.25098]
[1733780440734,135.3,220.09,220.01,0.25098]
[1733780441336,135.3,220.09,220.01,0.12549]
[1733780441537,135.3,220.09,219.99,0.25098]
[1733780441717,20.0,220.08,219.98,7.0783622]
[1733780442118,23.776884,220.05,219.98,7.0783622]
[1733780442436,135.3,220.12,219.99,0.12549]
[1733780442647,135.3,220.12,220.01,0.12549]
[1733780443356,135.3,220.12,220.01,0.25098]
[1733780443841,20.0,220.08,220.01,0.12549]
[1733780444223,23.776884,220.07,219.98,28.91416025]
[1733780444414,23.776884,220.07,219.99,0.12549]
[1733780444619,23.776884,220.09,219.99,0.12549]
[1733780444845,23.776884,220.09,220.02,0.12549]
[1733780445028,135.3,220.2,220.03,0.12549]
[1733780445230,135.3,220.19,220.03,0.12549]
[1733780445544,4.7168,220.13,220.03,0.12549]
[1733780445914,10.0,220.23,220.06,21.83579805]
[1733780445915,4.835,220.2,220.06,21.83579805]
[1733780446114,4.835,220.2,220.11,0.12549]
[1733780446336,4.835,220.2,220.11,0.25098]
[1733780447119,8.2289,220.24,220.15,0.12549]
[1733780447440,135.3,220.27,220.13,0.12549]
[1733780447638,135.3,220.26,220.13,0.25098]
[1733780448568,43.776884,220.22,220.15,0.12549]
[1733780448763,23.776884,220.22,220.15,0.12549]
[1733780449050,20.0,220.21,220.17,0.12549]
[1733780449226,135.3,220.24,220.17,0.25098]
[1733780449427,5.0705,220.28,220.17,0.25098]
[1733780449428,135.3,220.26,220.17,0.25098]
[1733780449851,135.3,220.25,220.12,21.83579805]
[1733780450327,135.3,220.25,220.13,0.25098]
[1733780450522,135.3,220.25,220.13,0.12549]
[1733780450748,23.776884,220.24,220.13,0.12549]
[1733780451148,23.776884,220.22,220.13,13.62500809]
[1733780451332,23.776884,220.22,220.14,0.12549]
[1733780451878,23.776884,220.18,220.1,0.12549]
[1733780452148,23.776884,220.18,220.09,13.62500809]
[1733780452323,23.776884,220.18,220.12,0.12549]
[1733780452758,15.0705,220.28,220.14,0.12549]
[1733780452759,135.3,220.26,220.14,0.12549]
[1733780452933,23.776884,220.24,220.14,0.12549]
[1733780453337,23.776884,220.24,220.14,0.25098]
[1733780453854,23.776884,220.24,220.14,0.12549]
[1733780454058,20.0,220.17,220.12,0.12549]
[1733780454226,135.3,220.2,220.16,0.25098]
[1733780454636,135.3,220.26,220.16,0.25098]
[1733780454840,135.3,220.26,220.18,0.12549]
[1733780455353,135.3,220.26,220.18,0.25098]
[1733780455952,20.0,220.25,220.18,0.25098]
[1733780456468,20.0,220.24,220.02,2.8629]
[1733780456652,20.0,220.18,220.09,13.62500809]
[1733780457046,20.0,220.18,220.1,0.12549]
[1733780457243,23.776884,220.17,220.1,0.12549]
[1733780457569,23.776884,220.22,220.12,0.12549]
[1733780457744,5.0705,220.28,220.06,10.0]
[1733780457745,135.3,220.27,220.1,10.0]
[1733780457951,147.8699,220.18,220.01,2.5]
[1733780458150,147.8699,220.18,220.04,13.62500809]
[1733780458352,147.8699,220.18,220.05,0.12549]
[1733780458546,135.3,220.17,220.07,0.12549]
[1733780459262,23.776884,220.17,220.11,0.12549]
[1733780459774,7.6076,220.23,220.13,0.12549]
[1733780459775,20.0,220.19,220.13,0.12549]
[1733780460074,135.3,220.22,220.13,0.25098]
[1733780460366,4.9623,220.25,220.17,0.25098]
[1733780460573,7.6076,220.29,220.19,0.12549]
[1733780460755,135.3,220.28,220.19,0.12549]
[1733780461150,135.3,220.28,220.17,0.12549]
[1733780461350,135.3,220.28,220.19,0.12549]
[1733780461756,135.3,220.3,220.2,13.62500809]
[1733780461955,135.3,220.3,220.18,13.62500809]
[1733780462358,135.3,220.29,220.19,0.25098]
[1733780463182,20.0,220.26,220.19,0.25098]
[1733780463559,20.0,220.25,220.19,0.25098]
[1733780463764,20.0,220.26,220.16,21.79002159]
[1733780464174,20.0,220.27,220.17,0.25098]
[1733780464481,4.9623,220.31,220.16,21.79002159]
[1733780464482,23.776884,220.25,220.16,21.79002159]
[1733780464666,23.776884,220.21,220.14,21.79002159]
[1733780464862,23.776884,220.21,220.07,7.9743]
[1733780464863,23.776884,220.21,220.12,21.79002159]
[1733780465473,23.776884,220.17,220.08,21.79002159]
[1733780465658,23.776884,220.13,220.06,21.79002159]
[1733780466076,135.3,220.2,220.13,0.12549]
[1733780466276,135.3,220.26,220.13,0.12549]
[1733780466460,23.776884,220.25,220.17,0.12549]
[1733780467492,23.776884,220.24,220.14,21.79002159]
[1733780467654,16.77079206,220.31,220.22,0.12549]
[1733780467655,135.3,220.3,220.22,0.12549]
[1733780467861,135.3,220.3,220.15,7.52949]
[1733780468055,135.3,220.3,220.15,0.12549]
[1733780468285,135.3,220.3,220.17,0.12549]
[1733780468690,135.3,220.3,220.16,21.79002159]
[1733780469068,20.0,220.27,220.17,0.12549]
[1733780469265,135.3,220.26,220.16,21.79002159]
[1733780469567,23.776884,220.21,220.12,21.79002159]
[1733780469762,159.076884,220.17,220.08,21.79002159]
[1733780470693,20.0,220.14,220.08,21.79002159]
[1733780470872,23.776884,220.13,220.09,0.12549]
[1733780471387,159.076884,220.13,220.06,21.79002159]
[1733780471686,20.0,220.16,220.07,0.12549]
[1733780471986,23.776884,220.13,220.09,0.12549]
[1733780472188,20.0,220.17,220.1,21.79002159]
[1733780472588,20.0,220.17,220.11,0.12549]
[1733780473687,135.3,220.15,220.06,21.79002159]
[1733780474191,23.776884,220.14,220.09,0.12549]
[1733780474374,23.776884,220.16,220.11,0.12549]
[1733780474889,23.776884,220.16,220.09,0.12549]
[1733780475102,23.776884,220.16,220.11,0.12549]
[1733780475769,23.776884,220.16,220.09,0.25098]
[1733780475969,23.776884,220.16,220.09,0.12549]
[1733780476177,7.2889,220.2,220.06,21.79002159]
[1733780476178,23.776884,220.12,220.06,21.79002159]
[1733780476374,135.3,220.15,220.06,21.79002159]
[1733780476569,23.776884,220.14,220.07,0.12549]
[1733780476885,20.0,220.11,220.04,21.79002159]
[1733780477085,23.776884,220.14,220.04,21.79002159]
[1733780477391,23.776884,220.14,220.05,0.12549]
[1733780478200,23.776884,220.12,220.05,0.12549]
[1733780478786,23.776884,220.12,220.02,21.79002159]
[1733780479002,20.0,220.09,220.02,21.79002159]
[1733780479494,20.0,220.09,220.05,0.12549]
[1733780480264,135.3,220.19,220.09,0.12549]
[1733780480474,135.3,220.22,220.13,0.12549]
[1733780481477,6.3875,220.25,220.17,0.12549]
[1733780482200,6.3875,220.25,220.17,0.25098]
[1733780482695,20.0,220.22,220.17,0.12549]
[1733780483568,6.3875,220.25,220.19,0.25098]
[1733780483808,135.3,220.29,220.19,0.25098]
[1733780483977,11.2914,220.3,220.23,0.12549]
[1733780484179,4.5844,220.3,220.23,0.12549]
[1733780484577,135.3,220.33,220.25,0.12549]
[1733780484993,135.3,220.32,220.2,21.79002159]
[1733780485396,135.3,220.32,220.21,0.12549]
[1733780485903,23.776884,220.28,220.21,0.12549]
[1733780486277,135.3,220.31,220.25,0.12549]
[1733780487376,135.3,220.31,220.23,0.12549]
[1733780487604,23.776884,220.26,220.18,21.79002159]
[1733780488686,23.776884,220.26,220.19,0.12549]
[1733780489008,20.0,220.23,220.18,21.79002159]
[1733780489208,20.0,220.23,220.19,0.12549]
[1733780489505,20.0,220.23,220.16,21.79002159]
[1733780489879,55.129084,220.22,220.14,21.79002159]
[1733780490090,1.78314254,220.29,220.18,0.12549]
[1733780490314,135.3,220.34,220.27,0.12549]
[1733780490473,146.6464,220.34,220.27,0.12549]
[1733780491518,135.3,220.33,220.18,0.12549]
[1733780491682,135.3,220.32,220.25,21.79002159]
[1733780491878,20.0,220.29,220.21,21.79002159]
[1733780492087,179.076884,220.28,220.2,0.12549]
[1733780493013,20.0,220.19,220.1,21.79002159]
[1733780493181,23.776884,220.14,220.08,21.79002159]
[1733780493380,20.0,220.1,220.04,21.79002159]
[1733780493583,20.0,220.1,220.02,21.79002159]
[1733780494021,20.0,220.06,219.98,21.79002159]
[1733780494184,23.776884,220.05,219.96,28.88373196]
[1733780494585,23.776884,220.05,219.97,21.79002159]
[1733780494885,20.0,220.02,219.97,21.79002159]
[1733780495084,43.776884,220.02,219.97,21.79002159]
[1733780496213,43.776884,220.02,219.98,21.91551159]
[1733780496388,43.776884,220.02,219.98,21.79002159]
[1733780496576,135.3,220.05,220.0,21.79002159]
[1733780496783,23.776884,220.09,220.03,0.12549]
[1733780497203,135.3,220.1,220.05,0.12549]
[1733780497920,4.0544,220.12,220.07,21.79002159]
[1733780498083,4.0544,220.12,220.08,0.12549]
[1733780498595,20.0,220.1,219.97,0.12549]
[1733780498796,20.0,220.05,220.02,21.79002159]
[1733780499212,23.776884,220.04,219.96,7.09371037]
[1733780499456,20.0,220.0,219.97,21.79002159]
[1733780499584,23.776884,220.02,219.97,21.79002159]
[1733780500310,135.3,220.03,219.96,7.09371037]
[1733780500311,20.0,220.0,219.99,21.91551159]
[1733780500810,159.076884,219.97,219.94,14.19661406]
[1733780501010,43.776884,219.95,219.94,4.48916401]
[1733780501214,43.776884,219.95,219.85,57.31680723]
[1733780501215,20.0,219.91,219.85,57.31680723]
[1733780501393,23.776884,219.9,219.87,42.53130812]
[1733780502093,20.0,219.88,219.87,42.53130812]
[1733780502682,43.776884,219.88,219.87,42.53130812]
[1733780502884,43.776884,219.88,219.85,0.5535066]
[1733780503099,23.776884,219.87,219.85,0.5535066]
[1733780503612,30.495184,219.87,219.85,0.5535066]
[1733780503787,159.076884,219.86,219.85,0.5535066]
[1733780503982,170.447684,219.86,219.85,0.5535066]
[1733780504194,35.147684,219.86,219.85,1e-08]
[1733780504591,23.776884,219.81,219.75,21.79002159]
[1733780504798,23.776884,219.77,219.73,21.79002159]
[1733780505183,23.776884,219.73,219.65,18.215986]
[1733780505385,20.0,219.74,219.63,1.2465066]
[1733780505599,20.0,219.7,219.64,21.79002159]
[1733780506087,10.0,219.79,219.63,1.2465066]
[1733780506088,20.0,219.77,219.69,21.79002159]
[1733780506282,20.0,219.76,219.71,21.79002159]
[1733780506784,23.776884,219.75,219.69,21.79002159]
[1733780507003,20.0,219.72,219.69,21.79002159]
[1733780507308,23.776884,219.76,219.63,1.2465066]
[1733780507504,23.776884,219.76,219.67,21.79002159]
[1733780507706,23.776884,219.76,219.69,21.79002159]
[1733780507907,20.0,219.77,219.71,21.79002159]
[1733780508232,23.776884,219.76,219.71,21.79002159]
[1733780508713,135.3,219.83,219.67,0.25098]